Cogmind - Beta 17 @@@ ROGUE MODE // 2026.07.15 @ 10:40:49 Player: ae Result: Smashed by cave-in Performance ------------- Evolutions (0) 0 Regions Visited (2) 400 Robots Destroyed (9) 45 Value Destroyed (93) 93 Prototype IDs (0) 0 Alien Tech Used (0) 0 Bonus (0) 0 TOTAL SCORE: 538 Bonus ------- None Cogmind --------- Core Integrity 0/250 Matter 265/300 Energy 56/100 System Corruption 2% Temperature Cool (0) Movement Core (50) Location -10/Subcaves Parts ------- > --- POWER (1) -------- (None) > --- PROPULSION (2) --- Light Treads Light Treads > --- UTILITY (2) ------ Hacking Suite > --- WEAPON (2) ------- Medium Laser > --- INVENTORY (5) ---- Subdweller Optics Scrap Shield Subdweller Machine Gun Makeshift Axe Peak State ------------ > --- POWER ------------ (None) > --- PROPULSION ------- Light Treads Light Treads > --- UTILITY ---------- Seismic Detector Hacking Suite > --- WEAPON ----------- Makeshift Axe > --- INVENTORY -------- Subdweller Optics Scrap Shield Medium Laser Subdweller Machine Gun [Rating: 10] Favorites ----------- Power None Propulsion Light Treads Treads Light Treads Utility Seismic Detector Device Seismic Detector Hackware Hacking Suite Weapon Medium Laser Energy Gun Medium Laser Ballistic Gun Assault Rifle Slashing Weapon Makeshift Axe Build | -11 -10 -10 ------- Run | Yrd Mat Sub Slots Evolved . | . . . Power . | . . . Propulsion . | . . . Utility . | . . . Weapon . | . . . Parts Attached 7 | 4 1 2 Power . | . . . Engine . | . . . Core . | . . . Reactor . | . . . Propulsion 2 | 2 . . Treads 2 | 2 . . Leg . | . . . Wheel . | . . . Hover . | . . . Flight . | . . . Utility 2 | 1 . 1 Device 1 | 1 . . Storage . | . . . Processor . | . . . Hackware 1 | . . 1 Protection . | . . . Artifact . | . . . Weapon 3 | 1 1 1 Energy Gun 1 | 1 . . Energy Cannon . | . . . Ballistic Gun 1 | . 1 . Ballistic Cannon . | . . . Launcher . | . . . Special Weapon . | . . . Impact Weapon . | . . . Slashing Weapon 1 | . . 1 Piercing Weapon . | . . . Special Melee Weapon . | . . . Unidentified Prototypes . | . . . Parts Lost 1 | . . 1 Power . | . . . Propulsion . | . . . Utility 1 | . . 1 Weapon . | . . . Highest Loss Streak 1 | . . 1 To Critical Strikes . | . . . Average Backups 3 | 1 2 3 Power . | . 1 . Propulsion . | . . . Utility 1 | . . 1 Weapon 1 | . . 1 Tool/Special . | . . . Unused Backups 4 | . . 4 Power 1 | . . 1 Propulsion . | . . . Utility 2 | . . 2 Weapon 1 | . . 1 Tool/Special . | . . . Average Slot Usage (%) 65 | . 57 68 Treads 28 | . 28 28 Device 14 | . 14 14 Hackware 8 | . . 11 Energy Gun 12 | . 14 12 Slashing Weapon 1 | . . 1 Peak Build Rating 10 | 4 5 10 Average Rating 6 | 2 4 7 On Entrance 2 | . 4 4 Avg Prop Armor Cover (%) 32 | 34 32 32 Naked Turns . | . . . Heaviest Build 4 | 3 3 4 Greatest Support 3 | 3 3 3 Greatest Overweight (x) 1 | . . 1 Average Overweight (x) . | . . . Largest Inventory Capacity 5 | 5 5 5 Average Capacity 5 | 5 5 5 Most Carried 5 | 2 3 5 Average Carried 4 | 1 2 4 Final Capacity 5 | 5 5 5 Final Carried 5 | 2 3 5 Class Distribution -------------------- 100% | Mutant Dominant Class ---------------- Mutant | -10/Materials Mutant | -10/Subcaves Resources | -11 -10 -10 ----------- Run | Yrd Mat Sub Matter Collected 269 | 240 19 10 Remotely . | . . . Salvage Created 295 | 196 99 . Parts 20 | 11 9 . Haulers Intercepted 1 | . 1 . Recyclers Shooed 1 | 1 . . Parts Field Recycled . | . . . Retrieved Matter . | . . . Parts Self-Destructed 9 | . . 9 Prevented . | . . . Parts Restored . | . . . Kills | -11 -10 -10 ------- Run | Yrd Mat Sub Combat Hostiles Destroyed 1 | . 1 . Guns 1 | . 1 . Classes Destroyed 5 | 2 3 . Tunneler 5 | 5 . . Hauler 1 | . 1 . Recycler 1 | 1 . . Operator 1 | . 1 . Grunt 1 | . 1 . Best Kill Streak 6 | 6 2 . Combat Bots Only 1 | . 1 . Max Kills in Single Turn 1 | 1 1 . Gunslinging . | . . . Exploded . | . . . Melee . | . . . Uniques/NPCs Destroyed . | . . . Combat | -11 -10 -10 -------- Run | Yrd Mat Sub Hostile Shots Fired 17 | . 4 13 Missed 8 | . 2 6 Hits 9 | . 2 7 Projectile 9 | . 2 7 Damage Taken 509 | . 23 486 Core 259 | . 11 248 Absorbed by Shields . | . . . Core Remaining (%) 100 | 100 . . Volleys Fired 40 | 20 20 . Largest 2 | 1 2 . Hottest 70 | 50 70 . Shots Fired 43 | 20 23 . Gun 43 | 20 23 . Cannon . | . . . Launcher . | . . . Special . | . . . Kinetic 3 | . 3 . Thermal 40 | 20 20 . Explosive . | . . . Electromagnetic . | . . . Robot Hit Streak 7 | 7 7 . Robot Miss Streak 3 | 2 3 . Penetration Max . | . . . Secondary Targets . | . . . Shots Hit Robots 30 | 15 15 . Core Hits 12 | 7 5 . Critical Kills . | . . . Critical Parts Destroyed . | . . . Critical Strikes 5 | 4 1 . Burn 5 | 4 1 . Melee Attacks 3 | . . 3 Impact . | . . . Slashing 3 | . . 3 Piercing . | . . . Sneak Attacks . | . . . Combat Hostiles . | . . . Follow-up Attacks . | . . . Damage Inflicted 374 | 188 186 . Guns 374 | 188 186 . Cannons . | . . . Explosions . | . . . Melee . | . . . Ramming . | . . . Kinetic 36 | . 36 . Thermal 338 | 188 150 . Explosive . | . . . Electromagnetic . | . . . Impact . | . . . Slashing . | . . . Piercing . | . . . Highest Corruption . | . . . Average Corruption . | . . . Corruption Purged . | . . . Corruption Blocked . | . . . Overload Shots . | . . . Overflow Damage . | . . . Projectiles . | . . . Explosions . | . . . Melee . | . . . Knockbacks . | . . . Impact . | . . . Kinetic . | . . . Secondary . | . . . Self-Inflicted Damage . | . . . Shots . | . . . Rammed . | . . . Targets Rammed . | . . . Kicked . | . . . Crushed . | . . . Highest Temperature 25 | 25 25 . Average Temperature 21 | 25 16 . Received Heat Transfer 24 | . 12 12 Siege Activations . | . . . Martial Activations . | . . . Shielding Activations . | . . . Robots Disrupted . | . . . Combat Hostiles . | . . . Robots Corrupted . | . . . Combat Hostiles . | . . . Parts Fried . | . . . Impact Corruptions . | . . . Robots Melted 1 | . 1 . Combat Hostiles . | . . . Parts Melted 4 | 4 . . Heat Transferred 1369 | 851 518 . Parts Sabotaged . | . . . Parts Stolen . | . . . Parts Stripped . | . . . Power Chain Reactions . | . . . Alert | -11 -10 -10 ------- Run | Yrd Mat Sub Maximum Alert Level . | . . . Low Security (%) 100 | 100 100 . Level 1 . | . . . Level 2 . | . . . Level 3 . | . . . Level 4 . | . . . Level 5 . | . . . High Security . | . . . Max Security . | . . . Peak Influence 30 | 20 30 . Initial 9 | . 9 . Average 4 | 5 4 . Influence Increases 102 | 30 42 30 Destroy 0b10 Robot/C 20 | . 20 . Destroy 0b10 Robot/NC 40 | 30 10 . Destroy Leader 12 | . 12 . Lose Combat Pursuer 30 | . . 30 Influence Decreases 102 | 15 57 30 Entered New Map 6 | . 6 . Time Decay 96 | 15 51 30 Squads Dispatched 2 | . 2 . Investigation . | . . . Extermination . | . . . Reinforcement 2 | . 2 . Assault . | . . . Garrison . | . . . Intercept . | . . . Searches Triggered . | . . . Construction Impeded . | . . . Haulers Reinforced . | . . . Active Scanning Responses . | . . . Cargo Convoy Interrupts . | . . . Stealth | -11 -10 -10 --------- Run | Yrd Mat Sub Distress Signals . | . . . Communications Jammed . | . . . Distress Signals . | . . . Times Spotted 17 | . 8 9 Peak Tracking Total 3 | . 2 3 Tactical Retreats 7 | . . 7 Traps | -11 -10 -10 ------- Run | Yrd Mat Sub Traps Triggered . | . . . Indirectly . | . . . Trap Hack Attempts . | . . . Triggered . | . . . Disarmed . | . . . Reprogrammed . | . . . Reused . | . . . Traps Extracted . | . . . Installed . | . . . Triggered . | . . . Machines | -11 -10 -10 ---------- Run | Yrd Mat Sub Machines Disabled . | . . . Max in Single Turn . | . . . Machines Repaired . | . . . Machines Dismantled . | . . . Machines Sabotaged . | . . . Overloaded Fab Kills . | . . . Hacking | -11 -10 -10 --------- Run | Yrd Mat Sub Machines Accessed 3 | . 1 2 Terminals 1 | . 1 . Fabricators . | . . . Repair Stations . | . . . Recycling Units . | . . . Scanalyzers . | . . . Garrison Access . | . . . Total Hacks 6 | . 3 3 Successful 3 | . . 3 Failed 3 | . 3 . Catastrophic 1 | . 1 . Database Lockouts . | . . . Manual 2 | . 2 . Terminals 3 | . 3 . Fabricators . | . . . Repair Stations . | . . . Recycling Units . | . . . Scanalyzers . | . . . Garrison Access . | . . . Terminal Hacks 3 | . . 3 Record 1 | . . 1 Open Door 1 | . . 1 Release Object 1 | . . 1 Fabricator Hacks . | . . . Repair Station Hacks . | . . . Recycling Unit Hacks . | . . . Scanalyzer . | . . . Garrison Access Hacks . | . . . Unauthorized Hacks . | . . . Terminals . | . . . Fabricators . | . . . Repair Stations . | . . . Recycling Units . | . . . Scanalyzers . | . . . Garrison Access . | . . . Data Cores Recovered . | . . . Used . | . . . Hacking Detections 1 | . 1 . Full Trace Events . | . . . Feedback Events . | . . . Feedback Blocked . | . . . Robot Schematics Acquired . | . . . Robots Built . | . . . Authchips . | . . . Time . | . . . Total Robot Build Rating . | . . . Part Schematics Acquired . | . . . Parts Built . | . . . Authchips . | . . . Time . | . . . Total Part Build Rating . | . . . Part Studies Acquired . | . . . Parts Repaired . | . . . Time . | . . . Parts Recycled . | . . . Recycled Matter . | . . . Retrieved Matter . | . . . Retrieved Components . | . . . Parts Scanalyzed . | . . . Part Schematics Acquired . | . . . Parts Damaged . | . . . Bothacking | -11 -10 -10 ------------ Run | Yrd Mat Sub Used RIF Installer . | . . . Robots Hacked . | . . . Non-combat . | . . . Combat . | . . . Robot Hacks Applied . | . . . Relay Couplers Released . | . . . Fabnet Peak Effective % . | . . . Robots Rewired . | . . . Allies Hacked . | . . . Hacks Repelled . | . . . Allies | -11 -10 -10 -------- Run | Yrd Mat Sub Total Allies . | . . . Largest Group . | . . . Highest-Rated Group . | . . . Highest-Rated Ally . | . . . Total Orders . | . . . Ally Attacks . | . . . Total Damage . | . . . Kills . | . . . Allies Corrupted . | . . . Allies Melted . | . . . Intel | -11 -10 -10 ------- Run | Yrd Mat Sub Active Infowar (turns) 1205 | 6 293 906 Seismic 1205 | 6 293 906 Robot Analysis Total . | . . . Derelict Logs Recovered 1 | . . 1 Drone Launches . | . . . Drone Recoveries . | . . . Exploration | -11 -10 -10 ------------- Run | Yrd Mat Sub Turns Passed 1274 | 76 293 905 Spaces Moved 1662 | 57 117 1488 Core 1662 | 57 117 1488 Treads . | . . . Legs . | . . . Wheels . | . . . Hover . | . . . Flight . | . . . Fastest Speed 50 | 50 50 50 Average Speed 51 | 50 50 51 Slowest Speed 100 | 50 50 100 Overloaded Moves . | . . . Propulsion Burnouts . | . . . Robots Hopped . | . . . Potential Cave-ins . | . . . Cave-ins Triggered 1 | . . 1 Exploration Rate (%) 36 | 3 27 78 Regions Visited 2 Branch Regions 1 Pre-discovered Areas . | . . . Known Exits Taken . | . . . Unknown Exits Taken 2 | 1 1 . Scrap Searched 4 | . . 4 Spaces Dug 3 | . . 3 Terrain Destroyed 3 | . . 3 Melee 3 | . . 3 Projectile . | . . . AOE . | . . . Terrain Rammed . | . . . Walls Destroyed . | . . . Machines Disabled . | . . . Actions | -11 -10 -10 --------- Run | Yrd Mat Sub Total 2038 | 82 328 1628 Wait 315 | . 189 126 Move 1660 | 56 116 1488 Hop . | . . . Pick Up 7 | 2 1 4 Fast Attach 4 | 4 . . Attach 2 | . 1 1 Detach 1 | . 1 . Swap 4 | . . 4 Drop 2 | . . 2 Fire 40 | 20 20 . Melee 3 | . . 3 Ram . | . . . Kick . | . . . Crush . | . . . Escape Stasis . | . . . Rewire . | . . . Trap . | . . . Miscellaneous . | . . . Route ------- -11/Scrapyard -10/Materials -10/Subcaves History --------- Turn | Location | Event 6 | -11/Scrapyard | Discovered new exit (range 15) 77 | -11/Scrapyard | Entered Materials 283 | -10/Materials | Discovered new exit (range 9) 300 | -10/Materials | Build established: Mutant 370 | -10/Materials | Entered Subcaves 385 | -10/Subcaves | Ambushed by Subdwellers from Twisted Machinery 396 | -10/Subcaves | Shifting Twisted Machinery released Flamer 397 | -10/Subcaves | Shifting Twisted Machinery released Scrap Shield 405 | -10/Subcaves | Learned Materials trap positions 1085 | -10/Subcaves | Shifting Twisted Machinery released Barrage Gun 1111 | -10/Subcaves | A swath of the cavern ceiling suddenly collapsed 1276 | -10/Subcaves | Crushed by falling debris 1276 | -10/Subcaves | Smashed by cave-in Last Messages --------------- could cause more extreme side effects. Take all precautions to prevent this from happening. >>Release Inventory Accessing inventory controls... Collection purity confirmed 100%... Ejecting SUBCON Basin... Delivery behind schedule, handle with care! 00895_ Dropped Assault Rifle. 00896_ Acquired Mak. Axe. 00964_ 4L-ZJT(R): "WEHOME!" Barrage Gun falls loose from the Twisted Machinery. A swath of the cavern ceiling suddenly collapses. 01129_ Subatomizers dissect the Lgt. Ion Engine. 01276_ The unstable cave ceiling collapses. 01276_ Crushed by falling debris. 01276_ Seismic Detector destroyed. 01276_ System corrupted by crushing effect (+2). Map ----- +----------------------------------------------------+ | #?????######??#"% ## "& ####?????????????????? | | #?????# ##?#] ##" ##" ## #?????????????????? | | ##????# ####### "###### #?????????????????? | | ##??## #### " ### #?????????????????? | | #?## # ##????????????????? | | ### ###??????????????? | | # #??????????????? | | #????????????? | | #???????????? | | # # ## ## ###???????????? | | ### ## ### ####?###?????????????? | | ## #?#### ###???????????????????? | | ##### #????####? ?????????????????? | | ##???# #???????? ??????????????????? | | # #????# #???????? $ ??????????????????? | | #### #???# ## #???????? #??????????????????? | | ??## ???# ## #??????# ???????????????????? | | ?## #??# ## #???### ???????????????????? | | ## ??# ## #??# ????????????????????? | | # ### #### #?# ????????????????????? | | ## #???# ## ?????????????????????? | | #????# ?????????????????????? | | ## #?????# ??????????????????????? | | # ## ########### ??????????????????????? | | # ## ##??#;#??????????????????????? | | # ####@#??????????????????????? | | ## ## ##???????####???????????? | | ?### ### ## # ##?????## ##??????????? | | ???## ### ######## ##????# #??????????? | | ##?## ## #??????# #?????# ##?????????? | | ### ## #??????# ####??## #?????????? | | ### #??????# #??## #?????????? | | #####?###??????# ##?## #?????????? | | ##??#####??????# #?## #?????????? | | #?# #?????## ### ##?????????? | | ### ## #????## ## ###??????????? | | ### #????## #????????????? | | #####????# ##???????????? | | ##????????# ###?????????? | | #??######?## ## #?????????? | | #### #### #### #?????????? | | ## "# ######## ##?????????? | | ## ## ## ###?# #??????????? | | ####### ## # ### ### ##?????????? | | ##?????# ## ## ### ## ##?# ###???????? | | #??????####### ### ##?# ##?## ##??????? | | #????????????# ####### ##??# #??????? | | ###????????????# ##??# #??## ####??????? | | #??????????????###???# #### #?????????? | | ?????????????????????## ###### #?????????? | +----------------------------------------------------+ Best States ------------- Heat Dissipation 25 Energy Generation 5 Energy Capacity 100 Matter Stores 300 Matter Capacity 300 Sight Range 16 Terrain Scan Density 10 Evasion (%) 50 Offensive Hacking 10 Item Schematics ----------------- None Robot Schematics ------------------ None Fabricated ------------ Nothing Repaired ---------- Nothing Studied --------- None Alien Tech Used ----------------- None Achievements -------------- None Challenges ------------ None Game ------ Seed DroneMatterShredder Manual? 0 Play Time 00:17:29 Cumulative 340.0 hours Start 2026.07.15 @ 10:29:53 End 2026.07.15 @ 10:40:49 Sessions 1 Manual Loads 0 Difficulty Rogue Special Mode None Game No. 216 Rogue 212 Adventurer 4 Explorer 0 Win Type - Total 101 Types 83/0/12/2/1/1/1/0/0/1 Lore% 91 Gallery% 73 Achievement% 71 Wizard Run 0 Options --------- Layout 2 ASCII 0 Keyboard 1 Movement Vi Keybinds 1 Fullscreen 2 Font 24/Smallcaps Map View 50x44 Zoom Use 0% Tactical HUD 1 Map Filters NONE Filters NONE Steam 1 RUN: 28d664ff-a0ce-4084-a43e-b9beb328150a